[Event "Schack-SM 2023: Veteran-SM 65+"]
[Site "Helsingborg Arena, Mellersta Stenbocksgatan 14, Helsingborg, Sweden"]
[Date "2023.07.06"]
[Round "6.1"]
[White "Soderberg, Per"]
[Black "Ivarsson, Torbjorn"]
[Result "1-0"]
[TimeControl "90 minutes for 40 moves + 30 minutes for the rest of games + 30 seconds per move from move one."]
[WhiteTitle "CM"]
[WhiteElo "2111"]
[BlackElo "2073"]

1. e4 {[%clk 01:30:58]} {[%emt 00:00:01]} e6 {[%clk 01:30:45]} {[%emt
00:00:16]} 2. d4 {[%clk 01:31:21]} {[%emt 00:00:06]} d5 {[%clk 01:31:10]}
{[%emt 00:00:05]} 3. Nc3 {[%clk 01:31:45]} {[%emt 00:00:06]} Nf6 {[%clk
01:31:25]} {[%emt 00:00:15]} 4. e5 {[%clk 01:31:56]} {[%emt 00:00:19]} Nfd7
{[%clk 01:31:45]} {[%emt 00:00:09]} 5. f4 {[%clk 01:32:21]} {[%emt 00:00:06]}
c5 {[%clk 01:32:04]} {[%emt 00:00:11]} 6. Nf3 {[%clk 01:32:44]} {[%emt
00:00:07]} Nc6 {[%clk 01:32:26]} {[%emt 00:00:08]} 7. Be3 {[%clk 01:32:58]}
{[%emt 00:00:16]} a6 {[%clk 01:29:34]} {[%emt 00:03:22]} 8. Ne2 {[%clk
01:32:42]} {[%emt 00:00:45]} Be7 {[%clk 01:27:08]} {[%emt 00:02:56]} 9. c3
{[%clk 01:30:40]} {[%emt 00:02:33]} b5 {[%clk 01:26:58]} {[%emt 00:00:41]} 10.
dxc5 {[%clk 01:30:06]} {[%emt 00:01:03]} Nxc5 {[%clk 01:24:49]} {[%emt
00:02:39]} 11. Ned4 {[%clk 01:29:59]} {[%emt 00:00:37]} Nxd4 {[%clk 01:21:35]}
{[%emt 00:03:44]} 12. Bxd4 {[%clk 01:27:47]} {[%emt 00:02:42]} Qc7 {[%clk
01:18:57]} {[%emt 00:03:09]} 13. g3 {[%clk 01:20:30]} {[%emt 00:07:46]} Bd7
{[%clk 01:18:02]} {[%emt 00:01:25]} 14. Bg2 {[%clk 01:20:20]} {[%emt 00:00:39]}
Rb8 {[%clk 01:14:03]} {[%emt 00:04:30]} 15. a3 {[%emt 00:01:15]} a5 {[%clk
01:13:27]} {[%emt 00:00:54]} 16. b4 {[%clk 01:17:52]} {[%emt 00:02:26]} Na4
{[%clk 01:12:39]} {[%emt 00:01:16]} 17. Qd2 {[%clk 01:14:20]} {[%emt 00:04:03]}
Rc8 {[%clk 01:11:03]} {[%emt 00:02:06]} 18. O-O {[%clk 01:14:03]} {[%emt
00:00:46]} Nxc3 {[%clk 00:56:03]} {[%emt 00:15:31]} 19. Rfc1 {[%clk 01:13:57]}
{[%emt 00:00:35]} axb4 {[%clk 00:56:11]} {[%emt 00:00:23]} 20. axb4 {[%clk
01:12:03]} {[%emt 00:02:24]} Bxb4 {[%clk 00:56:29]} {[%emt 00:00:11]} 21. Qb2
{[%clk 01:12:20]} {[%emt 00:00:13]} Ba5 {[%clk 00:52:07]} {[%emt 00:04:53]} 22.
Rxa5 {[%clk 01:09:31]} {[%emt 00:03:19]} Qxa5 {[%clk 00:52:01]} {[%emt
00:00:36]} 23. Rxc3 {[%clk 01:09:12]} {[%emt 00:00:49]} O-O {[%clk 00:51:56]}
{[%emt 00:00:34]} 24. Ra3 {[%clk 01:07:26]} {[%emt 00:02:16]} Qc7 {[%clk
00:51:03]} {[%emt 00:01:24]} 25. Ra7 {[%clk 01:07:25]} {[%emt 00:00:31]} Qc6
{[%clk 00:51:10]} {[%emt 00:00:23]} 26. h4 {[%clk 01:06:51]} {[%emt 00:01:03]}
Ra8 {[%clk 00:51:32]} {[%emt 00:00:09]} 27. Bf1 {[%clk 01:02:17]} {[%emt
00:05:03]} Rxa7 {[%clk 00:51:01]} {[%emt 00:01:03]} 28. Bxa7 {[%clk 01:02:38]}
{[%emt 00:00:08]} Ra8 {[%clk 00:51:10]} {[%emt 00:00:21]} 29. Bf2 {[%clk
01:02:15]} {[%emt 00:00:53]} Ra5 {[%clk 00:50:53]} {[%emt 00:00:48]} 30. Nd4
{[%clk 01:00:04]} {[%emt 00:02:40]} Qc7 {[%clk 00:50:02]} {[%emt 00:01:21]} 31.
Nb3 {[%clk 00:56:02]} {[%emt 00:04:32]} Ra8 {[%clk 00:49:26]} {[%emt 00:01:07]}
32. Nc5 {[%clk 00:55:01]} {[%emt 00:01:30]} Bc6 {[%clk 00:49:28]} {[%emt
00:00:27]} 33. h5 {[%clk 00:51:15]} {[%emt 00:04:16]} h6 {[%clk 00:49:49]}
{[%emt 00:00:10]} 34. Bd4 {[%clk 00:47:30]} {[%emt 00:04:15]} Qa5 {[%clk
00:44:54]} {[%emt 00:05:25]} 35. Nd3 {[%clk 00:45:59]} {[%emt 00:02:00]} Qa4
{[%clk 00:42:33]} {[%emt 00:02:53]} 36. Nb4 {[%clk 00:43:37]} {[%emt 00:02:51]}
Be8 {[%clk 00:42:36]} {[%emt 00:00:26]} 37. Bc5 {[%clk 00:41:34]} {[%emt
00:02:33]} Qd1 {[%clk 00:42:00]} {[%emt 00:01:07]} 38. Qe2 {[%clk 00:37:48]}
{[%emt 00:04:15]} Qb3 {[%clk 00:39:52]} {[%emt 00:02:39]} 39. Kh2 {[%emt
00:15:06]} Ra3 {[%clk 00:35:11]} {[%emt 00:04:09]} 40. Qg4 {[%clk 00:15:28]}
{[%emt 00:09:15]} Qb2+ {[%clk 00:20:09]} {[%emt 00:15:32]} 41. Bg2 {[%clk
00:13:08]} {[%emt 00:02:51]} Qc3 {[%clk 00:18:36]} {[%emt 00:02:03]} 42. Be7
{[%clk 00:11:48]} {[%emt 00:01:50]} Kh7 {[%clk 00:18:55]} {[%emt 00:00:11]} 43.
Bf8 {[%clk 00:10:34]} {[%emt 00:01:43]} g6 {[%clk 00:18:59]} {[%emt 00:00:26]}
44. hxg6+ {[%clk 00:08:44]} {[%emt 00:02:20]} fxg6 {[%clk 00:18:35]} {[%emt
00:00:55]} 45. Qh4 {[%clk 00:05:45]} {[%emt 00:03:29]} Kg8 {[%clk 00:18:49]}
{[%emt 00:00:16]} 46. Bd6 {[%clk 00:03:46]} {[%emt 00:02:29]} Bf7 {[%clk
00:15:26]} {[%emt 00:03:53]} 47. Nc6 {[%clk 00:26:52]} {[%emt 00:07:22]} Ra2
{[%clk 00:40:01]} {[%emt 00:05:56]} 48. Ne7+ {[%clk 00:22:39]} {[%emt
00:04:43]} Kh7 {[%clk 00:38:27]} {[%emt 00:02:05]} 49. Qf6 {[%clk 00:22:18]}
{[%emt 00:00:50]} Be8 {[%clk 00:36:59]} {[%emt 00:01:59]} 50. Qf8 {[%clk
00:22:01]} {[%emt 00:00:46]} 1-0

[ePGN "0.1;DGT LiveChess/2.2.5"]

[Event "Schack-SM 2023: Veteran-SM 50+"]
[Site "Helsingborg Arena, Mellersta Stenbocksgatan 14, Helsingborg, Sweden"]
[Date "2023.07.06"]
[Round "6.1"]
[White "Wahlund, Max"]
[Black "Petersson, Kjell"]
[Result "1-0"]
[TimeControl "90 minutes for 40 moves + 30 minutes for the rest of games + 30 seconds per move from move one."]
[WhiteTitle "CM"]
[BlackTitle "CM"]
[WhiteElo "2002"]
[BlackElo "2061"]

1. d4 {[%clk 01:30:56]} {[%emt 00:00:03]} f5 {[%clk 01:30:59]} {[%emt
00:00:02]} 2. Bg5 {[%clk 01:31:18]} {[%emt 00:00:08]} h6 {[%clk 01:31:21]}
{[%emt 00:00:08]} 3. Bh4 {[%clk 01:31:45]} {[%emt 00:00:02]} g5 {[%clk
01:31:24]} {[%emt 00:00:29]} 4. e3 {[%clk 01:32:01]} {[%emt 00:00:13]} Bg7
{[%clk 01:31:00]} {[%emt 00:00:55]} 5. Qh5+ {[%clk 01:26:27]} {[%emt 00:06:04]}
Kf8 {[%clk 01:31:27]} {[%emt 00:00:03]} 6. Bg3 {[%clk 01:26:48]} {[%emt
00:00:08]} c5 {[%clk 01:26:52]} {[%emt 00:05:05]} 7. Nc3 {[%clk 01:18:50]}
{[%emt 00:08:28]} Nf6 {[%clk 01:10:45]} {[%emt 00:16:38]} 8. Qg6 {[%clk
01:05:54]} {[%emt 00:13:25]} cxd4 {[%clk 01:09:30]} {[%emt 00:01:45]} 9. Nb5
{[%clk 01:06:02]} {[%emt 00:00:23]} Qa5+ {[%clk 00:47:57]} {[%emt 00:22:03]} 10.
Kd1 {[%clk 01:05:29]} {[%emt 00:01:02]} dxe3 {[%clk 00:46:50]} {[%emt
00:01:37]} 11. fxe3 {[%clk 01:05:29]} {[%emt 00:00:30]} d6 {[%clk 00:36:18]}
{[%emt 00:11:03]} 12. Nf3 {[%clk 01:01:41]} {[%emt 00:04:16]} Nc6 {[%clk
00:30:49]} {[%emt 00:06:00]} 13. Bc4 {[%clk 00:58:54]} {[%emt 00:03:16]} d5
{[%clk 00:30:40]} {[%emt 00:00:40]} 14. Bd3 {[%clk 00:58:58]} {[%emt 00:00:26]}
Ng4 {[%clk 00:25:08]} 15. Nc7 {[%clk 00:44:59]} {[%emt 00:20:31]} Nxe3+ {[%clk
00:22:29]} {[%emt 00:03:09]} 16. Ke2 {[%clk 00:45:06]} {[%emt 00:00:23]} Bd7
{[%clk 00:22:36]} {[%emt 00:00:24]} 17. Nxa8 {[%clk 00:40:44]} {[%emt
00:04:51]} f4 {[%clk 00:21:31]} {[%emt 00:01:35]} 18. Bf2 {[%clk 00:29:27]}
{[%emt 00:11:47]} g4 {[%clk 00:20:04]} {[%emt 00:01:57]} 19. Bxe3 {[%clk
00:24:07]} {[%emt 00:05:50]} gxf3+ {[%clk 00:20:27]} {[%emt 00:00:07]} 20. gxf3
{[%clk 00:24:24]} {[%emt 00:00:13]} fxe3 {[%clk 00:20:46]} {[%emt 00:00:12]} 21.
Kxe3 {[%clk 00:24:29]} {[%emt 00:00:24]} Bxb2 {[%clk 00:09:49]} {[%emt
00:11:27]} 22. Rab1 {[%clk 00:23:54]} {[%emt 00:01:05]} Qc5+ {[%clk 00:09:36]}
{[%emt 00:00:44]} 23. Ke2 {[%clk 00:22:53]} {[%emt 00:01:30]} Nd4+ {[%clk
00:07:42]} {[%emt 00:02:24]} 24. Kd1 {[%clk 00:23:22]} Qc3 {[%clk 00:03:43]}
{[%emt 00:04:30]} 25. Qg3 {[%clk 00:21:28]} {[%emt 00:02:23]} Nf5 {[%clk
00:00:51]} {[%emt 00:03:23]} 26. Qb8+ {[%clk 00:17:35]} {[%emt 00:04:22]} Kg7
{[%clk 00:01:16]} {[%emt 00:00:05]} 27. Qxb7 {[%clk 00:17:27]} {[%emt
00:00:38]} Ba3 {[%clk 00:00:36]} {[%emt 00:01:10]} 28. Qxd7 {[%clk 00:16:48]}
{[%emt 00:01:09]} Ne3+ {[%clk 00:00:59]} {[%emt 00:00:07]} 29. Ke2 {[%clk
00:17:15]} {[%emt 00:00:04]} Qe5 {[%clk 00:00:46]} {[%emt 00:00:42]} 30. Rhg1+
{[%clk 00:16:29]} {[%emt 00:01:16]} Kf7 {[%clk 00:01:06]} {[%emt 00:00:10]} 31.
f4 {[%clk 00:14:15]} {[%emt 00:02:43]} Qh5+ {[%clk 00:01:09]} {[%emt 00:00:28]}
32. Kxe3 {[%clk 00:14:21]} {[%emt 00:00:25]} Bc5+ {[%clk 00:01:37]} {[%emt
00:00:02]} 33. Kd2 {[%clk 00:14:02]} {[%emt 00:00:48]} Qxh2+ {[%clk 00:01:25]}
{[%emt 00:00:42]} 34. Kc3 {[%clk 00:14:20]} {[%emt 00:00:12]} Bd4+ {[%clk
00:00:34]} {[%emt 00:01:21]} 35. Kxd4 {[%clk 00:13:53]} {[%emt 00:00:56]} Qxf4+
{[%clk 00:01:03]} {[%emt 00:00:02]} 36. Kxd5 {[%clk 00:12:57]} {[%emt
00:01:26]} Rd8 {[%clk 00:01:07]} {[%emt 00:00:25]} 37. Qxd8 {[%clk 00:12:24]}
{[%emt 00:01:04]} e6+ {[%clk 00:01:36]} {[%emt 00:00:01]} 38. Kc6 {[%clk
00:12:18]} {[%emt 00:00:37]} 1-0

[Event "Schack-SM 2023: Sverigemastarklassen"]
[Site "Helsingborg Arena, Mellersta Stenbocksgatan 14, Helsingborg, Sweden"]
[Date "2023.07.06"]
[Round "6.3"]
[White "Hector, Jonny"]
[Black "Seo, Jung Min"]
[Result "1/2-1/2"]
[TimeControl "90 minutes for 40 moves + 30 minutes for the rest of the game + 30 seconds per move from move one."]
[WhiteTitle "GM"]
[BlackTitle "IM"]
[WhiteElo "2481"]
[BlackElo "2469"]

1. e4 {[%clk 01:30:51]} {[%emt 00:00:06]} c5 {[%clk 01:30:59]} {[%emt
00:00:03]} 2. Nf3 {[%clk 01:31:10]} {[%emt 00:00:10]} d6 {[%clk 01:31:28]}
{[%emt 00:00:02]} 3. d4 {[%clk 01:31:28]} {[%emt 00:00:12]} cxd4 {[%clk
01:31:56]} {[%emt 00:00:03]} 4. Nxd4 {[%clk 01:31:48]} {[%emt 00:00:10]} Nf6
{[%clk 01:32:25]} {[%emt 00:00:01]} 5. Nc3 {[%clk 01:32:07]} {[%emt 00:00:11]}
a6 {[%clk 01:32:55]} 6. Bg5 {[%clk 01:32:22]} {[%emt 00:00:14]} Nbd7 {[%clk
01:33:22]} {[%emt 00:00:04]} 7. f4 {[%clk 01:32:32]} {[%emt 00:00:18]} Qc7
{[%clk 01:33:46]} {[%emt 00:00:08]} 8. Qf3 {[%clk 01:32:23]} {[%emt 00:00:38]}
h6 {[%clk 01:34:01]} {[%emt 00:00:16]} 9. Bxf6 {[%clk 01:31:37]} {[%emt
00:01:15]} Nxf6 {[%clk 01:34:26]} {[%emt 00:00:06]} 10. f5 {[%clk 01:31:06]}
{[%emt 00:01:00]} Qc5 {[%clk 01:32:08]} {[%emt 00:02:48]} 11. Nb3 {[%clk
01:29:20]} {[%emt 00:02:17]} Qe5 {[%clk 01:31:51]} {[%emt 00:00:46]} 12. Nd2
{[%clk 01:28:29]} {[%emt 00:01:20]} e6 {[%clk 01:30:31]} {[%emt 00:01:51]} 13.
O-O-O {[%clk 01:18:32]} {[%emt 00:10:25]} b5 {[%clk 01:13:37]} {[%emt
00:17:26]} 14. Bd3 {[%clk 01:14:10]} {[%emt 00:04:51]} Bd7 {[%clk 00:58:10]}
{[%emt 00:15:58]} 15. Qe3 {[%clk 00:51:38]} {[%emt 00:23:01]} Be7 {[%clk
00:53:24]} {[%emt 00:05:16]} 16. Rhe1 {[%clk 00:47:07]} {[%emt 00:05:00]} Rc8
{[%clk 00:31:12]} {[%emt 00:22:43]} 17. Nf3 {[%clk 00:47:03]} {[%emt 00:00:33]}
Qc5 {[%clk 00:31:38]} {[%emt 00:00:05]} 18. Qxc5 {[%clk 00:46:06]} {[%emt
00:01:26]} dxc5 {[%clk 00:30:41]} {[%emt 00:01:28]} 19. e5 {[%clk 00:41:03]}
{[%emt 00:05:33]} Nh7 {[%clk 00:23:24]} {[%emt 00:07:48]} 20. fxe6 {[%clk
00:29:44]} {[%emt 00:11:49]} Bxe6 {[%clk 00:23:48]} {[%emt 00:00:07]} 21. Bxh7
{[%clk 00:29:14]} {[%emt 00:00:58]} Rxh7 {[%clk 00:24:15]} {[%emt 00:00:05]} 22.
Ne4 {[%clk 00:29:13]} {[%emt 00:00:30]} Rd8 {[%clk 00:19:32]} {[%emt 00:05:13]}
23. Nd6+ {[%clk 00:28:52]} {[%emt 00:00:51]} Kf8 {[%clk 00:19:56]} {[%emt
00:00:07]} 24. a3 {[%clk 00:24:51]} {[%emt 00:04:31]} h5 {[%clk 00:19:49]}
{[%emt 00:00:37]} 25. b4 {[%clk 00:23:36]} {[%emt 00:01:44]} cxb4 {[%clk
00:20:07]} {[%emt 00:00:13]} 26. axb4 {[%clk 00:23:54]} {[%emt 00:00:11]} Rh6
{[%clk 00:19:54]} {[%emt 00:00:44]} 27. h3 {[%clk 00:16:45]} {[%emt 00:07:39]}
Rg6 {[%clk 00:19:07]} {[%emt 00:01:18]} 28. Re2 {[%clk 00:16:21]} {[%emt
00:00:53]} Rh6 {[%clk 00:14:32]} {[%emt 00:05:05]} 29. Rd4 {[%clk 00:13:54]}
{[%emt 00:02:57]} g5 {[%clk 00:14:26]} {[%emt 00:00:37]} 30. g4 {[%clk
00:07:36]} {[%emt 00:06:47]} hxg4 {[%clk 00:14:17]} {[%emt 00:00:40]} 31. hxg4
{[%clk 00:08:03]} {[%emt 00:00:02]} Rh3 {[%clk 00:12:24]} {[%emt 00:02:24]} 32.
Ne1 {[%clk 00:07:37]} {[%emt 00:00:56]} Rh1 {[%clk 00:10:04]} {[%emt 00:02:50]}
33. Kd2 {[%clk 00:07:01]} {[%emt 00:01:06]} Kg7 {[%clk 00:08:43]} {[%emt
00:01:51]} 34. Nd3 {[%clk 00:05:59]} {[%emt 00:01:31]} Rg1 {[%clk 00:06:51]}
{[%emt 00:02:22]} 35. Ree4 {[%clk 00:05:49]} {[%emt 00:00:40]} Kg6 {[%clk
00:06:05]} {[%emt 00:01:16]} 36. Nc5 {[%clk 00:05:31]} {[%emt 00:00:48]} Ra1
{[%clk 00:05:51]} {[%emt 00:00:44]} 37. Nxe6 {[%clk 00:02:47]} {[%emt
00:03:14]} fxe6 {[%clk 00:06:17]} {[%emt 00:00:05]} 38. Re2 {[%clk 00:02:42]}
{[%emt 00:00:34]} Rf8 {[%clk 00:05:04]} {[%emt 00:01:43]} 39. Rh2 {[%clk
00:01:22]} {[%emt 00:01:49]} Rg1 {[%clk 00:02:34]} {[%emt 00:03:00]} 40. Kc3
{[%clk 00:01:03]} {[%emt 00:00:49]} Rf4 {[%clk 00:01:02]} {[%emt 00:02:02]} 41.
Rh8 {[%clk 00:26:19]} {[%emt 00:05:13]} Rxd4 {[%clk 00:15:09]} {[%emt
00:16:25]} 42. Kxd4 {[%clk 00:26:30]} {[%emt 00:00:18]} Rxg4+ {[%clk 00:15:38]}
{[%emt 00:00:02]} 43. Ke3 {[%clk 00:16:36]} {[%emt 00:10:24]} Rg3+ {[%clk
00:10:12]} {[%emt 00:05:56]} 44. Kd4 {[%clk 00:13:23]} {[%emt 00:03:43]} Rg4+
{[%clk 00:10:31]} {[%emt 00:00:11]} 45. Ke3 {[%clk 00:13:47]} {[%emt 00:00:06]}
Rg3+ {[%clk 00:05:16]} {[%emt 00:05:45]} 46. Kd4 {[%clk 00:13:47]} {[%emt
00:00:29]} Rg4+ {[%clk 00:03:00]} {[%emt 00:02:47]} 1/2-1/2

[Event "Schack-SM 2023: Mastarklassen-elit"]
[Site "Helsingborg Arena, Mellersta Stenbocksgatan 14, Helsingborg, Sweden"]
[Date "2023.07.06"]
[Round "6.2"]
[White "Crevatin, Leo"]
[Black "Soderstrom, Adrian"]
[Result "1/2-1/2"]
[TimeControl "90 minutes for 40 moves + 30 minutes for the rest of games + 30 seconds per move from move one."]
[WhiteTitle "FM"]
[BlackTitle "FM"]
[WhiteElo "2265"]
[BlackElo "2311"]

1. d4 {[%clk 01:30:57]} {[%emt 00:00:02]} d5 {[%clk 01:30:49]} {[%emt
00:00:13]} 2. c4 {[%clk 01:31:18]} {[%emt 00:00:07]} c6 {[%clk 01:31:16]}
{[%emt 00:00:05]} 3. Nf3 {[%clk 01:31:43]} {[%emt 00:00:04]} Nf6 {[%clk
01:31:44]} {[%emt 00:00:02]} 4. Qc2 {[%clk 01:32:07]} {[%emt 00:00:06]} dxc4
{[%clk 01:32:08]} {[%emt 00:00:06]} 5. e4 {[%clk 01:32:33]} {[%emt 00:00:04]}
b5 {[%clk 01:32:34]} {[%emt 00:00:04]} 6. b3 {[%clk 01:32:57]} {[%emt
00:00:07]} cxb3 {[%clk 01:32:55]} {[%emt 00:00:08]} 7. axb3 {[%clk 01:33:04]}
{[%emt 00:00:23]} e6 {[%clk 01:32:51]} {[%emt 00:00:34]} 8. Bd3 {[%clk
01:33:17]} {[%emt 00:00:16]} a5 {[%clk 01:26:15]} {[%emt 00:07:08]} 9. O-O
{[%clk 01:33:40]} {[%emt 00:00:07]} Na6 {[%clk 01:24:02]} {[%emt 00:02:43]} 10.
Qxc6+ {[%clk 01:32:53]} {[%emt 00:01:16]} Bd7 {[%clk 01:24:22]} {[%emt
00:00:11]} 11. Qb7 {[%clk 01:17:21]} {[%emt 00:16:01]} Nb4 {[%clk 01:24:19]}
{[%emt 00:00:33]} 12. Bxb5 {[%clk 01:17:02]} {[%emt 00:00:49]} Rb8 {[%clk
01:24:40]} {[%emt 00:00:10]} 13. Bxd7+ {[%clk 01:17:26]} {[%emt 00:00:05]} Nxd7
{[%clk 01:25:05]} {[%emt 00:00:05]} 14. Qa7 {[%clk 01:17:19]} {[%emt 00:00:36]}
Ra8 {[%clk 01:25:29]} {[%emt 00:00:06]} 1/2-1/2

[Event "Schack-SM 2023: Junior-SM"]
[Site "Helsingborg Arena, Mellersta Stenbocksgatan 14, Helsingborg, Sweden"]
[Date "2023.07.06"]
[Round "6.5"]
[White "Lindholm, Gustav"]
[Black "Carlsson, Ludvig"]
[Result "1/2-1/2"]
[TimeControl "90 minutes for 40 moves + 30 minutes for the rest of the game + 30 seconds per move from move one."]
[BlackTitle "IM"]
[WhiteElo "2155"]
[BlackElo "2373"]

1. d4 {[%clk 01:30:57]} {[%emt 00:00:02]} d5 {[%clk 01:30:51]} {[%emt
00:00:09]} 2. c4 {[%clk 01:31:23]} {[%emt 00:00:04]} e6 {[%clk 01:31:16]}
{[%emt 00:00:05]} 3. Nc3 {[%clk 01:31:46]} {[%emt 00:00:07]} Nf6 {[%clk
01:31:40]} {[%emt 00:00:05]} 4. Nf3 {[%clk 01:32:09]} {[%emt 00:00:07]} c5
{[%clk 01:32:04]} {[%emt 00:00:07]} 5. cxd5 {[%clk 01:32:24]} {[%emt 00:00:15]}
Nxd5 {[%clk 01:32:28]} {[%emt 00:00:06]} 6. e4 {[%clk 01:32:00]} {[%emt
00:00:54]} Nxc3 {[%clk 01:32:48]} {[%emt 00:00:10]} 7. bxc3 {[%clk 01:32:25]}
{[%emt 00:00:05]} cxd4 {[%clk 01:33:13]} {[%emt 00:00:05]} 8. cxd4 {[%clk
01:32:24]} {[%emt 00:00:32]} Bb4+ {[%clk 01:33:36]} {[%emt 00:00:07]} 9. Bd2
{[%clk 01:32:32]} {[%emt 00:00:21]} Bxd2+ {[%clk 01:34:00]} {[%emt 00:00:06]}
10. Qxd2 {[%clk 01:32:52]} {[%emt 00:00:11]} O-O {[%clk 01:34:25]} {[%emt
00:00:05]} 11. Bb5 {[%clk 01:29:35]} {[%emt 00:03:47]} Bd7 {[%clk 01:26:08]}
{[%emt 00:08:47]} 12. Bxd7 {[%clk 01:28:02]} {[%emt 00:02:04]} Nxd7 {[%clk
01:25:45]} {[%emt 00:00:53]} 13. O-O {[%clk 01:28:23]} {[%emt 00:00:09]} Rc8
{[%clk 01:03:21]} {[%emt 00:22:54]} 14. Rfc1 {[%clk 01:19:19]} {[%emt
00:09:33]} h6 {[%clk 01:01:16]} {[%emt 00:02:35]} 15. h3 {[%clk 01:06:19]}
{[%emt 00:13:30]} Nf6 {[%clk 00:57:15]} {[%emt 00:04:31]} 16. Rxc8 {[%clk
00:49:41]} {[%emt 00:17:08]} Qxc8 {[%clk 00:57:33]} {[%emt 00:00:11]} 17. Rc1
{[%clk 00:50:06]} {[%emt 00:00:07]} Qa8 {[%clk 00:56:54]} {[%emt 00:01:09]} 18.
Rc7 {[%clk 00:31:15]} {[%emt 00:19:20]} Nxe4 {[%clk 00:55:38]} {[%emt
00:01:46]} 19. Qb4 {[%clk 00:31:08]} {[%emt 00:00:37]} b6 {[%clk 00:49:27]}
{[%emt 00:06:41]} 20. Qe7 {[%clk 00:29:11]} {[%emt 00:02:26]} Qd8 {[%clk
00:46:37]} {[%emt 00:03:21]} 21. Qxd8 {[%clk 00:26:11]} {[%emt 00:03:30]} Rxd8
{[%clk 00:47:01]} {[%emt 00:00:06]} 22. Rxa7 {[%clk 00:26:35]} {[%emt
00:00:06]} Rc8 {[%clk 00:36:18]} {[%emt 00:11:13]} 23. Ne5 {[%clk 00:14:17]}
{[%emt 00:12:48]} f6 {[%clk 00:30:39]} {[%emt 00:06:09]} 24. Nd7 {[%clk
00:09:12]} {[%emt 00:05:35]} b5 {[%clk 00:26:11]} {[%emt 00:04:58]} 25. Rb7
{[%clk 00:08:46]} {[%emt 00:00:56]} Nc3 {[%clk 00:25:50]} {[%emt 00:00:51]} 26.
Nc5 {[%clk 00:04:29]} {[%emt 00:04:47]} Ne2+ {[%clk 00:25:25]} {[%emt
00:00:55]} 27. Kf1 {[%clk 00:04:42]} {[%emt 00:00:15]} Nxd4 {[%clk 00:25:53]}
{[%emt 00:00:04]} 28. Nb3 {[%clk 00:05:07]} {[%emt 00:00:06]} Nxb3 {[%clk
00:24:08]} {[%emt 00:02:14]} 29. axb3 {[%clk 00:05:33]} {[%emt 00:00:04]} Rc5
{[%clk 00:24:31]} {[%emt 00:00:06]} 30. Ke2 {[%clk 00:05:41]} {[%emt 00:00:23]}
Rd5 {[%clk 00:24:32]} {[%emt 00:00:30]} 31. Ke3 {[%clk 00:04:11]} {[%emt
00:01:57]} Kh7 {[%clk 00:23:58]} {[%emt 00:01:07]} 32. h4 {[%clk 00:02:02]}
{[%emt 00:02:38]} h5 {[%clk 00:23:33]} {[%emt 00:00:55]} 33. g3 {[%clk
00:02:01]} {[%emt 00:00:31]} Kg6 {[%clk 00:19:35]} {[%emt 00:04:28]} 34. Ke4
{[%clk 00:01:52]} {[%emt 00:00:39]} f5+ {[%clk 00:16:25]} {[%emt 00:03:40]} 35.
Ke3 {[%clk 00:02:17]} {[%emt 00:00:05]} Kf6 {[%clk 00:16:51]} {[%emt 00:00:04]}
36. b4 {[%clk 00:00:54]} {[%emt 00:01:53]} g5 {[%clk 00:12:44]} {[%emt
00:04:37]} 37. hxg5+ {[%clk 00:01:18]} {[%emt 00:00:06]} Kxg5 {[%clk 00:13:12]}
{[%emt 00:00:02]} 38. Rg7+ {[%clk 00:01:31]} {[%emt 00:00:17]} Kf6 {[%clk
00:13:03]} {[%emt 00:00:39]} 39. Rb7 {[%clk 00:00:38]} {[%emt 00:01:22]} Ke5
{[%clk 00:06:36]} {[%emt 00:06:58]} 40. Rb6 {[%clk 00:00:34]} {[%emt 00:00:35]}
Kf6 {[%clk 00:06:22]} {[%emt 00:00:43]} 41. Rb7 {[%clk 00:00:40]} {[%emt
00:00:24]} Kg6 {[%clk 00:06:14]} {[%emt 00:00:38]} 42. Rb6 {[%clk 00:28:37]}
{[%emt 00:02:33]} Kf7 {[%clk 00:35:58]} {[%emt 00:00:47]} 43. Rb7+ {[%clk
00:25:55]} {[%emt 00:03:12]} Kf6 {[%clk 00:35:39]} {[%emt 00:00:48]} 44. f4
{[%clk 00:17:27]} {[%emt 00:08:58]} Kg6 {[%clk 00:32:05]} {[%emt 00:04:04]} 45.
Re7 {[%clk 00:17:29]} {[%emt 00:00:27]} Rd6 {[%clk 00:30:34]} {[%emt 00:02:02]}
46. Rb7 {[%clk 00:17:48]} {[%emt 00:00:11]} Ra6 {[%clk 00:30:58]} {[%emt
00:00:06]} 47. Rxb5 {[%clk 00:17:34]} {[%emt 00:00:44]} Ra3+ {[%clk 00:31:25]}
{[%emt 00:00:04]} 48. Kf2 {[%clk 00:17:46]} {[%emt 00:00:17]} h4 {[%clk
00:28:32]} {[%emt 00:03:24]} 49. gxh4 {[%clk 00:17:42]} {[%emt 00:00:34]} Rb3
{[%clk 00:27:57]} {[%emt 00:01:05]} 50. Rb6 {[%clk 00:17:30]} {[%emt 00:00:43]}
Kh5 {[%clk 00:28:20]} {[%emt 00:00:06]} 51. Rxe6 {[%clk 00:17:14]} {[%emt
00:00:46]} Rxb4 {[%clk 00:27:45]} {[%emt 00:01:05]} 52. Kf3 {[%clk 00:16:59]}
{[%emt 00:00:44]} Rb3+ {[%clk 00:28:10]} {[%emt 00:00:06]} 53. Re3 {[%clk
00:16:58]} {[%emt 00:00:31]} Rxe3+ {[%clk 00:28:15]} {[%emt 00:00:25]} 54. Kxe3
{[%clk 00:17:20]} {[%emt 00:00:07]} Kxh4 {[%clk 00:28:42]} {[%emt 00:00:04]} 55.
Kf2 {[%clk 00:15:59]} {[%emt 00:01:51]} Kg4 {[%clk 00:28:54]} {[%emt 00:00:17]}
56. Kg2 {[%clk 00:16:26]} {[%emt 00:00:04]} Kxf4 {[%clk 00:28:53]} {[%emt
00:00:31]} 57. Kf2 {[%clk 00:16:52]} {[%emt 00:00:04]} Ke4 {[%clk 00:29:16]}
{[%emt 00:00:07]} 58. Ke2 {[%clk 00:17:18]} {[%emt 00:00:05]} f4 {[%clk
00:29:41]} {[%emt 00:00:05]} 59. Kf2 {[%clk 00:17:42]} {[%emt 00:00:06]} f3
{[%clk 00:30:05]} {[%emt 00:00:06]} 60. Kf1 {[%clk 00:18:07]} {[%emt 00:00:05]}
Ke3 {[%clk 00:30:27]} 1/2-1/2